Cogmind - Beta 17.1 @@@ ROGUE MODE // 2026.09.22 @ 16:56:09 Player: Caluan Result: Destroyed by S-10 Pest with Light Assault Rifle Performance ------------- Evolutions (0) 0 Regions Visited (2) 400 Robots Destroyed (26) 130 Value Destroyed (588) 588 Prototype IDs (0) 0 Alien Tech Used (0) 0 Bonus (0) 0 TOTAL SCORE: 1118 Bonus ------- None Cogmind --------- Core Integrity 0/250 Matter 277/300 Energy 100/100 System Corruption 0% Temperature Cool (0) Movement Rolling (395) Ox21 Location -10/Subcaves Parts ------- > --- POWER (1) -------- Subdweller Power Source > --- PROPULSION (2) --- Wheel Subdweller Monowheel > --- UTILITY (2) ------ Humpback > --- WEAPON (2) ------- Subdweller Laser Subdweller Laser > --- INVENTORY (35) --- Subdweller Power Source Subdweller Power Source Light Treads Light Treads Light Treads Light Treads Light Treads Subdweller Monowheel Disposable Heat Sink Large Storage Unit Subdweller Optics Improved Terrain Scanner Seismic Detector Small Laser Small Laser Subdweller Laser Subdweller Laser Subdweller Beam Cannon Subdweller Beam Cannon Subdweller Beam Cannon Assault Rifle Light Assault Rifle Battle Rifle Subdweller Machine Gun Subdweller Machine Gun Barrage Gun Barrage Gun Subdweller Shrapnel Launcher Scrap Shield Fragment (48) Scrap Shield Fragment (46) Scrap Shield Fragment (38) Scrap Shield Fragment (24) Peak State ------------ > --- POWER ------------ Subdweller Power Source > --- PROPULSION ------- Wheel Subdweller Monowheel > --- UTILITY ---------- Humpback > --- WEAPON ----------- Subdweller Laser Subdweller Laser > --- INVENTORY -------- Subdweller Power Source Subdweller Power Source Light Treads Light Treads Light Treads Light Treads Light Treads Disposable Heat Sink Large Storage Unit Subdweller Optics Improved Terrain Scanner Seismic Detector Small Laser Small Laser Subdweller Laser Subdweller Beam Cannon Subdweller Beam Cannon Subdweller Beam Cannon Assault Rifle Light Assault Rifle Battle Rifle Subdweller Machine Gun Subdweller Machine Gun Barrage Gun Barrage Gun Subdweller Shrapnel Launcher Scrap Shield Fragment Scrap Shield Fragment Scrap Shield Fragment Scrap Shield Fragment [Rating: 16] Favorites ----------- Power Subdweller Power Source Engine Subdweller Power Source Propulsion Wheel Treads Light Treads Wheel Wheel Utility Humpback Storage Humpback Weapon Subdweller Laser Energy Gun Subdweller Laser Ballistic Gun Light Assault Rifle Launcher Subdweller Shrapnel Launcher Build | -11 -10 -10 ------- Run | Yrd Mat Sub Slots Evolved . | . . . Power . | . . . Propulsion . | . . . Utility . | . . . Weapon . | . . . Parts Attached 25 | 6 5 14 Power 5 | 1 . 4 Engine 5 | 1 . 4 Core . | . . . Reactor . | . . . Propulsion 9 | 2 2 5 Treads 4 | 2 2 . Leg . | . . . Wheel 5 | . . 5 Hover . | . . . Flight . | . . . Utility 4 | 1 2 1 Device . | . . . Storage 4 | 1 2 1 Processor . | . . . Hackware . | . . . Protection . | . . . Artifact . | . . . Weapon 7 | 2 1 4 Energy Gun 3 | 1 . 2 Energy Cannon . | . . . Ballistic Gun 3 | 1 1 1 Ballistic Cannon . | . . . Launcher 1 | . . 1 Special Weapon . | . . . Impact Weapon . | . . . Slashing Weapon . | . . . Piercing Weapon . | . . . Special Melee Weapon . | . . . Unidentified Prototypes . | . . . Parts Lost 5 | . . 5 Power 2 | . . 2 Propulsion 2 | . . 2 Utility . | . . . Weapon 1 | . . 1 Highest Loss Streak 3 | . . 3 To Critical Strikes 1 | . . 1 Average Backups 21 | 2 7 24 Power 1 | . 1 1 Propulsion 4 | . 2 5 Utility 4 | . 2 4 Weapon 10 | . 2 12 Tool/Special . | . . . Unused Backups 18 | . . 18 Power 2 | . . 2 Propulsion 1 | . . 1 Utility 4 | . . 4 Weapon 11 | . . 11 Tool/Special . | . . . Average Slot Usage (%) 84 | . 81 84 Engine 13 | . 13 13 Treads 5 | . 28 1 Wheel 21 | . . 26 Storage 14 | . 14 14 Energy Gun 22 | . 7 25 Ballistic Gun 5 | . 17 2 Peak Build Rating 16 | 6 7 16 Average Rating 13 | 5 6 15 On Entrance 4 | . 6 7 Avg Prop Armor Cover (%) 4 | . . 4 Naked Turns . | . . . Heaviest Build 213 | 12 28 213 Greatest Support 40 | 40 40 40 Greatest Overweight (x) 21 | . 1 21 Average Overweight (x) 10 | . . 15 Largest Inventory Capacity 35 | 8 15 35 Average Capacity 29 | 7 14 34 Most Carried 32 | 4 10 32 Average Carried 24 | 2 7 28 Final Capacity 35 | 8 15 35 Final Carried 32 | 4 8 32 Class Distribution -------------------- 76% | Hauler-Mutant 23% | Mutant Dominant Class ---------------- Mutant | -10/Materials Hauler-Mutant | -10/Subcaves Resources | -11 -10 -10 ----------- Run | Yrd Mat Sub Matter Collected 714 | 267 162 285 Remotely . | . . . Salvage Created 757 | 89 267 401 Parts 63 | 12 26 25 Haulers Intercepted 1 | . 1 . Recyclers Shooed . | . . . Parts Field Recycled . | . . . Retrieved Matter . | . . . Parts Self-Destructed 8 | . . 8 Prevented . | . . . Parts Restored . | . . . Kills | -11 -10 -10 ------- Run | Yrd Mat Sub Combat Hostiles Destroyed 21 | . 11 10 Guns 17 | . 11 6 AOE 4 | . . 4 Classes Destroyed 6 | 1 3 2 Tunneler 4 | 4 . . Hauler 1 | . 1 . Swarmer 9 | . 9 . Grunt 2 | . 2 . Artisan 1 | . . 1 Subdweller 10 | . . 10 Best Kill Streak 3 | 2 3 2 Combat Bots Only 3 | . 3 2 Max Kills in Single Turn 3 | 1 1 3 Gunslinging . | . . . Exploded 2 | . . 2 Melee . | . . . Uniques/NPCs Destroyed . | . . . Combat | -11 -10 -10 -------- Run | Yrd Mat Sub Hostile Shots Fired 111 | . 56 55 Missed 24 | . 12 12 Hits 87 | . 44 43 Projectile 87 | . 44 43 Critical Strikes 4 | . 1 3 Damage Taken 1432 | . 369 1063 Core 251 | . 52 199 Absorbed by Shields . | . . . Regen/Repaired (Parts) 105 | . 105 . Core Remaining (%) 100 | 100 . . Volleys Fired 84 | 7 28 49 Largest 2 | 2 2 2 Hottest 120 | 60 60 120 Shots Fired 151 | 14 56 81 Gun 147 | 14 56 77 Cannon . | . . . Launcher 4 | . . 4 Special . | . . . Kinetic 86 | 7 35 44 Thermal 65 | 7 21 37 Explosive . | . . . Electromagnetic . | . . . Robot Hit Streak 12 | 6 4 12 Robot Miss Streak 3 | 1 3 2 Penetration Max . | . . . Secondary Targets 2 | . 2 . Max Gunslinging Chain 1 | . 1 . Shots Hit Robots 91 | 8 31 52 Core Hits 44 | 6 19 19 Critical Kills 2 | . . 2 Critical Parts Destroyed 1 | 1 . . Critical Strikes 5 | 1 . 4 Destroy 5 | 1 . 4 Melee Attacks . | . . . Impact . | . . . Slashing . | . . . Piercing . | . . . Sneak Attacks . | . . . Combat Hostiles . | . . . Follow-up Attacks . | . . . Damage Inflicted 1534 | 89 323 1122 Guns 1151 | 89 312 750 Cannons . | . . . Explosions 372 | . . 372 Melee . | . . . Ramming 11 | . 11 . Kinetic 814 | 25 185 604 Thermal 709 | 64 127 518 Explosive . | . . . Electromagnetic . | . . . Impact . | . . . Slashing . | . . . Piercing . | . . . Highest Corruption . | . . . Average Corruption . | . . . Corruption Purged . | . . . Corruption Blocked . | . . . Overload Shots . | . . . Overflow Damage 26 | . . 26 Projectiles . | . . . Explosions 26 | . . 26 Melee . | . . . Knockbacks . | . . . Impact . | . . . Kinetic . | . . . Secondary . | . . . Self-Inflicted Damage 29 | . . 29 Shots 1 | . . 1 Rammed 4 | . 4 . Targets Rammed 4 | . 4 . Kicked . | . . . Crushed . | . . . Highest Temperature 63 | 20 40 63 Average Temperature 27 | 15 20 43 Received Heat Transfer 231 | . 12 219 Siege Activations . | . . . Martial Activations . | . . . Shielding Activations . | . . . Robots Disrupted . | . . . Combat Hostiles . | . . . Robots Corrupted . | . . . Combat Hostiles . | . . . Parts Fried . | . . . Impact Corruptions . | . . . Robots Melted . | . . . Combat Hostiles . | . . . Parts Melted 2 | . . 2 Heat Transferred 1075 | 150 300 625 Parts Sabotaged . | . . . Parts Stolen . | . . . Parts Stripped . | . . . Power Chain Reactions . | . . . Alert | -11 -10 -10 ------- Run | Yrd Mat Sub Maximum Alert Level . | . . . Low Security (%) 100 | 100 100 . Level 1 . | . . . Level 2 . | . . . Level 3 . | . . . Level 4 . | . . . Level 5 . | . . . High Security . | . . . Max Security . | . . . Peak Influence 120 | 5 120 . Initial . | . . . Average 46 | 1 55 . Influence Increases 348 | 20 328 . Destroy 0b10 Robot/C 220 | . 220 . Destroy 0b10 Robot/NC 25 | 20 5 . Destroy Leader 42 | . 42 . Destroy Structure 1 | . 1 . Lose Combat Pursuer 60 | . 60 . Influence Decreases 348 | 20 326 2 Entered New Map 2 | . . 2 Time Decay 346 | 20 326 . Squads Dispatched 1 | . 1 . Investigation . | . . . Extermination . | . . . Reinforcement 1 | . 1 . Assault . | . . . Garrison . | . . . Intercept . | . . . Searches Triggered . | . . . Construction Impeded . | . . . Haulers Reinforced . | . . . Active Scanning Responses . | . . . Cargo Convoy Interrupts . | . . . Stealth | -11 -10 -10 --------- Run | Yrd Mat Sub Distress Signals . | . . . Communications Jammed . | . . . Distress Signals . | . . . Times Spotted 33 | . 19 14 Peak Tracking Total 6 | . 6 6 Tactical Retreats 1 | . 1 . Traps | -11 -10 -10 ------- Run | Yrd Mat Sub Traps Triggered 9 | . 5 4 Indirectly . | . . . Trap Hack Attempts . | . . . Triggered . | . . . Disarmed . | . . . Reprogrammed . | . . . Reused . | . . . Traps Extracted . | . . . Installed . | . . . Triggered . | . . . Machines | -11 -10 -10 ---------- Run | Yrd Mat Sub Machines Disabled . | . . . Max in Single Turn . | . . . Machines Repaired . | . . . Machines Dismantled . | . . . Machines Sabotaged . | . . . Overloaded Fab Kills . | . . . Hacking | -11 -10 -10 --------- Run | Yrd Mat Sub Machines Accessed 2 | . 1 1 Terminals . | . . . Fabricators . | . . . Repair Stations 1 | . 1 . Recycling Units . | . . . Scanalyzers . | . . . Garrison Access . | . . . Total Hacks 6 | . 2 4 Successful 6 | . 2 4 Failed . | . . . Catastrophic . | . . . Database Lockouts . | . . . Manual 1 | . . 1 Terminals . | . . . Fabricators . | . . . Repair Stations 2 | . 2 . Recycling Units . | . . . Scanalyzers . | . . . Garrison Access . | . . . Terminal Hacks 4 | . . 4 Record 4 | . . 4 Fabricator Hacks . | . . . Repair Station Hacks 2 | . 2 . Scan Component 1 | . 1 . Repair 1 | . 1 . Recycling Unit Hacks . | . . . Scanalyzer . | . . . Garrison Access Hacks . | . . . Unauthorized Hacks . | . . . Terminals . | . . . Fabricators . | . . . Repair Stations . | . . . Recycling Units . | . . . Scanalyzers . | . . . Garrison Access . | . . . Data Cores Recovered . | . . . Used . | . . . Hacking Detections . | . . . Full Trace Events . | . . . Feedback Events . | . . . Feedback Blocked . | . . . Robot Schematics Acquired . | . . . Robots Built . | . . . Authchips . | . . . Time . | . . . Total Robot Build Rating . | . . . Part Schematics Acquired . | . . . Parts Built . | . . . Authchips . | . . . Time . | . . . Total Part Build Rating . | . . . Part Studies Acquired . | . . . Parts Repaired 1 | . 1 . Time 26 | . 26 . Parts Recycled . | . . . Recycled Matter . | . . . Retrieved Matter . | . . . Retrieved Components . | . . . Parts Scanalyzed . | . . . Part Schematics Acquired . | . . . Parts Damaged . | . . . Bothacking | -11 -10 -10 ------------ Run | Yrd Mat Sub Used RIF Installer . | . . . Robots Hacked . | . . . Non-combat . | . . . Combat . | . . . Robot Hacks Applied . | . . . Relay Couplers Released . | . . . Fabnet Peak Effective % . | . . . Robots Rewired . | . . . Allies Hacked . | . . . Hacks Repelled . | . . . Allies | -11 -10 -10 -------- Run | Yrd Mat Sub Total Allies . | . . . Largest Group . | . . . Highest-Rated Group . | . . . Highest-Rated Ally . | . . . Total Orders . | . . . Ally Attacks . | . . . Total Damage . | . . . Kills . | . . . Allies Corrupted . | . . . Allies Melted . | . . . Intel | -11 -10 -10 ------- Run | Yrd Mat Sub Active Infowar (turns) . | . . . Robot Analysis Total . | . . . Derelict Logs Recovered 2 | . . 2 Drone Launches . | . . . Drone Recoveries . | . . . Exploration | -11 -10 -10 ------------- Run | Yrd Mat Sub Turns Passed 6316 | 208 1015 5093 Spaces Moved 2177 | 115 539 1523 Core 14 | 14 . . Treads 751 | 101 539 111 Legs . | . . . Wheels 1412 | . . 1412 Hover . | . . . Flight . | . . . Fastest Speed 50 | 50 160 160 Average Speed 271 | 146 160 320 Slowest Speed 560 | 160 240 560 Overloaded Moves . | . . . Propulsion Burnouts . | . . . Robots Hopped . | . . . Potential Cave-ins . | . . . Cave-ins Triggered . | . . . Exploration Rate (%) 45 | 5 71 61 Regions Visited 2 Branch Regions 1 Pre-discovered Areas 3 | . . 3 Known Exits Taken . | . . . Unknown Exits Taken 2 | 1 1 . Scrap Searched 8 | . . 8 Spaces Dug . | . . . Terrain Destroyed 50 | . . 50 Melee . | . . . Projectile . | . . . AOE 50 | . . 50 Terrain Rammed . | . . . Walls Destroyed . | . . . Machines Disabled . | . . . Actions | -11 -10 -10 --------- Run | Yrd Mat Sub Total 2427 | 142 634 1651 Wait 63 | 5 38 20 Move 2175 | 114 538 1523 Hop . | . . . Pick Up 59 | 10 11 38 Fast Attach 9 | . 5 4 Attach 15 | 6 5 4 Detach 2 | . . 2 Swap 11 | . 3 8 Drop 5 | . 2 3 Fire 84 | 7 28 49 Melee . | . . . Ram . | . . . Kick . | . . . Crush 4 | . 4 . Escape Stasis . | . . . Rewire . | . . . Trap . | . . . Miscellaneous . | . . . Route ------- -11/Scrapyard -10/Materials (discovered 4 exits: [*Mat x2] / [*Min] / *Sub) -10/Subcaves (discovered 1 exit: [*Mat]) History --------- Turn | Location | Event 34 | -11/Scrapyard | Discovered new exit (range 16) 209 | -11/Scrapyard | Entered Materials 301 | -10/Materials | Build established: Mutant 414 | -10/Materials | Discovered new exit (range 16) 573 | -10/Materials | Discovered new exit (range 8) 990 | -10/Materials | Repaired Lgt. Treads 1064 | -10/Materials | Discovered new exit (range 10) 1212 | -10/Materials | Discovered new exit (range 8) 1224 | -10/Materials | Entered Subcaves 1224 | -10/Subcaves | Discovered new exit (range 11) 1225 | -10/Subcaves | Approached by a straggling Scientist 1392 | -10/Subcaves | Shifting Twisted Machinery released Sub. Shrapnel Launcher 1410 | -10/Subcaves | Shifting Twisted Machinery released Sub. Machine Gun 1412 | -10/Subcaves | Core integrity fell below 50% 1432 | -10/Subcaves | Ambushed by angry Subdweller bent on revenge 1562 | -10/Subcaves | A swath of the cavern ceiling suddenly collapsed 1764 | -10/Subcaves | Build established: Hauler-Mutant 1847 | -10/Subcaves | Learned location of Storage (-8) 1935 | -10/Subcaves | Core integrity fell below 20% 1959 | -10/Subcaves | Lost 3 parts (2n1w) 2735 | -10/Subcaves | Visited Clippyterm 2747 | -10/Subcaves | Learned Factory garrison access intel 5644 | -10/Subcaves | Learned location of Zion (-7) 5644 | -10/Subcaves | Met a Zionite searching for "candidates" 6317 | -10/Subcaves | Destroyed by S-10 Pest with Light Assault Rifle Last Messages --------------- 05080_ Sub. Monowheel shoots sparks and powers down. 05087_ 7H-A9A(R) destroyed. 05089_ CD-3V0(R) destroyed. 05091_ Subatomizers dissect the Sub. Laser. 05113_ Acquired 37 matter. 05115_ Subatomizers dissect the Sub. Laser. 05117_ Acquired 10 matter. 05127_ Subatomizers dissect the Disposable Heat Sink. 05168_ Acquired Sub. Laser. 05184_ Subatomizers dissect the Disposable Heat Sink. 05244_ 1F-3X3(z): "She is not going to be happy we haven't found any suitable candidates yet." 05644_ 1F-3X3(z): "Hey you! It's really dangerous down here, I feel that you could die at any moment. For your health and safety might I suggest a trip to Zion?" World map updated: -7/Zion. Map ----- +----------------------------------------------------+ | ## # #????????????????????????????? | | # ### ## #????????????????????????????? | | ####?#### ## #?????????????????????????????""? | | ??# #?### ######???????????????????????????????? | | ??# ## ####?????????????###??#####?????????????? | | ??# #???????########## #### #?????????????? | | ??# ##?????## ##?????????????? | | ??# ###??## ##??????????????? | | ???# #### ###???????????????? | | ???# ## ## ##?????????????????? | | #### ### ####??????????????????? | | # ## ########?????????????????????? | | # #### #??????????????????????????? | | # ##??## ## #?????""""?????????????????? | | # ##????### ##?####?????" "?????????????????? | | ###########???????????t "?????????????????? | | ## ## #####???????? ??????????????????? | | #### #???????? ??????????????????? | | #??### ##???????? s ???????????????????? | | ?????## ### #####??###??? s##??????????????????? | | ?????###### ### ##?# ##? #??????????????????? | | ##???????## ### #?# #?s ##?????????????????? | | ?????????#"" ## ### #? ###???????????????? | | ???????###"" ##% ##??????????????? | | ???????#"""" #??????????????? | | ???????# "" @ #????????????????????? | | ???????#""" #????????????????????? | | ???????##"" "" ## ##????????????????????? | | ????????# "" ""#### ######?????????????????????? | | ?????? " ""#??#####??????????????????????????? | | ????? "" "#?????????????????????????????????? | | ???? """#?????????????????????????????????? | | ????"" """??????????????????????????????????? | | ?????"""" "???????????????????????????????????? | | ??????? """ ?????????????????????????????????????? | | ??????????""?????????????????????????????????????? | | ?????????????????????????????????????????????????? | | ?????????????????????????????????????????????????? | | ?????????????????????????????????????????????????? | | ?????????????????????????????????????????????????? | | ?????????????????????????????????????????????????? | | ?????????????????????????????????????????????????? | | ?????????????????????????????????????????????????? | | ?????????????????????????????????????????????????? | | ?????????????????????????????????????????????????? | | ?????????????????????????????????????????????????? | | ????????????????????????????????????????????????## | | ????????????????????????????????????????????????# | | ???????????????????????????????????????????????## | | ??????????????????????????????????????????????## | +----------------------------------------------------+ Best States ------------- Heat Dissipation 25 Energy Generation 15 Energy Capacity 250 Matter Stores 300 Matter Capacity 300 Sight Range 16 Terrain Scan Density 10 Evasion (%) 50 Recoil Reduction 2 Item Schematics ----------------- None Robot Schematics ------------------ None Fabricated ------------ Nothing Repaired ---------- Lgt. Treads | 25% | -10/Materials Studied --------- None Alien Tech Used ----------------- None Achievements -------------- None Challenges ------------ None Game ------ Seed HugeLargeMaul Manual? 0 Play Time 00:16:41 Cumulative 320.4 hours Start 2026.09.22 @ 16:42:22 End 2026.09.22 @ 16:56:09 Sessions 1 Manual Loads 0 Difficulty Rogue Special Mode None Game No. 356 Rogue 356 Adventurer 0 Explorer 0 Win Type - Total 3 Types 3/0/0/0/0/0/0/0/0/0 Lore% 54 Gallery% 60 Achievement% 46 Wizard Run 0 Options --------- Layout 1 ASCII 0 Keyboard 0 Movement Numpad Keybinds 0 Fullscreen 2 Font 24/Smallcaps Map View 50x35 Zoom Use 0% Tactical HUD 1 Map Filters NONE Filters NONE Steam 1 RUN: 83f24616-acd6-499a-84d0-17fee5a145f0